[Event "NJSK 2022 Meisjes C"]
[Site "Almelo, Netherlands"]
[Date "2022.05.03"]
[Round "3.1"]
[White "Damen, Josephine"]
[Black "Westerhof, Fleur"]
[Result "0-1"]
[TimeControl "90min/40moves + 30min + 30sec/move"]
[WhiteElo "1600"]
[BlackElo "1509"]

1. e4 {[%clk 01:30:58]} {[%emt 00:00:01]} e5 {[%clk 01:30:47]} {[%emt
00:00:14]} 2. Nf3 {[%clk 01:31:23]} {[%emt 00:00:04]} Nc6 {[%clk 01:31:06]}
{[%emt 00:00:11]} 3. Bc4 {[%clk 01:31:48]} {[%emt 00:00:05]} Bc5 {[%clk
01:31:24]} {[%emt 00:00:11]} 4. c3 {[%clk 01:32:15]} {[%emt 00:00:05]} Nf6
{[%clk 01:31:43]} {[%emt 00:00:10]} 5. d4 {[%clk 01:32:40]} {[%emt 00:00:05]}
exd4 {[%clk 01:31:53]} {[%emt 00:00:18]} 6. cxd4 {[%clk 01:33:05]} {[%emt
00:00:06]} Bb4+ {[%clk 01:32:04]} {[%emt 00:00:19]} 7. Nc3 {[%clk 01:33:28]}
{[%emt 00:00:07]} Nxe4 {[%clk 01:32:11]} {[%emt 00:00:22]} 8. O-O {[%clk
01:33:51]} {[%emt 00:00:08]} Bxc3 {[%clk 01:32:24]} {[%emt 00:00:16]} 9. d5
{[%clk 01:34:15]} {[%emt 00:00:07]} Bf6 {[%clk 01:31:25]} {[%emt 00:01:29]} 10.
Re1 {[%clk 01:34:23]} {[%emt 00:00:22]} Ne7 {[%clk 01:31:26]} {[%emt 00:00:29]}
11. Rxe4 {[%clk 01:34:32]} {[%emt 00:00:21]} d6 {[%clk 01:31:18]} {[%emt
00:00:38]} 12. Bg5 {[%clk 01:32:29]} {[%emt 00:02:33]} Bxg5 {[%clk 01:29:22]}
{[%emt 00:02:24]} 13. Nxg5 {[%clk 01:32:51]} {[%emt 00:00:10]} h6 {[%clk
01:28:31]} {[%emt 00:01:21]} 14. Nxf7 {[%clk 00:58:47]} {[%emt 00:34:34]} Kxf7
{[%clk 01:09:51]} {[%emt 00:19:10]} 15. Qf3+ {[%clk 00:57:47]} {[%emt
00:01:31]} Nf5 {[%clk 01:02:29]} {[%emt 00:07:52]} 16. Rae1 {[%clk 00:50:11]}
{[%emt 00:08:05]} Rf8 {[%clk 00:52:28]} {[%emt 00:10:31]} 17. Bd3 {[%clk
00:41:03]} {[%emt 00:09:38]} Kg8 {[%clk 00:41:05]} {[%emt 00:11:53]} 18. Rf4
{[%clk 00:27:26]} {[%emt 00:14:07]} Qf6 {[%clk 00:24:56]} {[%emt 00:16:40]} 19.
Qh5 {[%clk 00:12:50]} {[%emt 00:15:06]} Qg5 {[%clk 00:13:43]} {[%emt 00:11:43]}
20. Qf3 {[%clk 00:08:53]} {[%emt 00:04:27]} Bd7 {[%clk 00:11:18]} {[%emt
00:02:55]} 21. Ree4 {[%clk 00:04:16]} {[%emt 00:05:07]} Nh4 {[%clk 00:05:07]}
{[%emt 00:06:41]} 22. Qg3 {[%clk 00:04:42]} {[%emt 00:00:04]} Qxg3 {[%clk
00:05:10]} {[%emt 00:00:27]} 23. hxg3 {[%clk 00:05:07]} {[%emt 00:00:05]} Ng6
{[%clk 00:05:18]} {[%emt 00:00:22]} 24. Rxf8+ {[%clk 00:04:38]} {[%emt
00:00:58]} Rxf8 {[%clk 00:05:39]} {[%emt 00:00:09]} 25. Rb4 {[%clk 00:04:23]}
{[%emt 00:00:45]} Ne5 {[%clk 00:05:42]} {[%emt 00:00:28]} 26. Be2 {[%clk
00:03:38]} {[%emt 00:01:15]} b6 {[%clk 00:05:49]} {[%emt 00:00:23]} 27. f4
{[%clk 00:03:57]} {[%emt 00:00:11]} Ng6 {[%clk 00:05:53]} {[%emt 00:00:26]} 28.
Rc4 {[%clk 00:04:05]} {[%emt 00:00:19]} Rc8 {[%clk 00:05:59]} {[%emt 00:00:27]}
29. Bh5 {[%clk 00:04:16]} {[%emt 00:00:19]} Ne7 {[%clk 00:06:11]} {[%emt
00:00:18]} 30. Bf3 {[%clk 00:04:26]} {[%emt 00:00:19]} c5 {[%clk 00:04:50]}
{[%emt 00:01:52]} 31. g4 {[%clk 00:04:10]} {[%emt 00:00:46]} Ng6 {[%clk
00:04:30]} {[%emt 00:00:48]} 32. g3 {[%clk 00:03:49]} {[%emt 00:00:53]} Re8
{[%clk 00:04:47]} {[%emt 00:00:13]} 33. Kf2 {[%clk 00:02:52]} {[%emt 00:01:27]}
b5 {[%clk 00:04:23]} {[%emt 00:00:54]} 34. Rc3 {[%clk 00:02:58]} {[%emt
00:00:16]} b4 {[%clk 00:04:23]} {[%emt 00:00:38]} 35. Rc1 {[%clk 00:02:41]}
{[%emt 00:00:47]} a5 {[%clk 00:04:16]} {[%emt 00:00:38]} 36. b3 {[%clk
00:02:10]} {[%emt 00:01:00]} a4 {[%clk 00:03:28]} {[%emt 00:01:18]} 37. bxa4
{[%clk 00:02:20]} {[%emt 00:00:20]} Bxa4 {[%clk 00:03:53]} {[%emt 00:00:06]} 38.
g5 {[%clk 00:02:32]} {[%emt 00:00:18]} hxg5 {[%clk 00:04:14]} {[%emt 00:00:09]}
39. Bh5 {[%clk 00:02:52]} {[%emt 00:00:11]} Nxf4 {[%clk 00:04:02]} {[%emt
00:00:42]} 40. gxf4 {[%clk 00:03:09]} {[%emt 00:00:13]} Rf8 {[%clk 00:04:21]}
{[%emt 00:00:11]} 41. Rg1 {[%clk 00:01:51]} {[%emt 00:01:46]} Rxf4+ {[%clk
00:02:57]} {[%emt 00:01:55]} 42. Ke3 {[%clk 00:02:15]} {[%emt 00:00:05]} Rf5
{[%clk 00:02:46]} {[%emt 00:00:42]} 43. Bg4 {[%clk 00:02:17]} {[%emt 00:00:28]}
Re5+ {[%clk 00:03:08]} {[%emt 00:00:08]} 44. Kf2 {[%clk 00:02:28]} {[%emt
00:00:19]} b3 {[%clk 00:02:34]} {[%emt 00:01:04]} 45. axb3 {[%clk 00:01:42]}
{[%emt 00:01:16]} Bxb3 {[%clk 00:02:59]} {[%emt 00:00:05]} 46. Bh5 {[%clk
00:29:47]} {[%emt 00:02:25]} Rxd5 {[%clk 00:30:53]} {[%emt 00:02:35]} 47. Bg6
{[%clk 00:29:54]} {[%emt 00:00:23]} Kf8 {[%clk 00:28:39]} {[%emt 00:02:45]} 48.
Re1 {[%clk 00:28:12]} {[%emt 00:02:11]} Re5 {[%clk 00:27:28]} {[%emt 00:01:42]}
49. Ra1 {[%clk 00:26:03]} {[%emt 00:02:39]} Ke7 {[%clk 00:27:04]} {[%emt
00:00:54]} 0-1

[Event "NJSK 2022 Meisjes C"]
[Site "Almelo, Netherlands"]
[Date "2022.05.03"]
[Round "3.2"]
[White "Van Apeldoorn, Vera"]
[Black "Liu, Chia-Yun"]
[Result "0-1"]
[TimeControl "90min/40moves + 30min + 30sec/move"]
[WhiteElo "1022"]
[BlackElo "1148"]

1. d4 {[%clk 01:30:58]} {[%emt 00:00:01]} d5 {[%clk 01:30:56]} {[%emt
00:00:05]} 2. c4 {[%clk 01:31:21]} {[%emt 00:00:07]} e6 {[%clk 01:31:08]}
{[%emt 00:00:17]} 3. cxd5 {[%clk 01:31:04]} {[%emt 00:00:47]} exd5 {[%clk
01:31:23]} {[%emt 00:00:15]} 4. Nc3 {[%clk 01:31:13]} {[%emt 00:00:22]} Nf6
{[%clk 01:31:28]} {[%emt 00:00:24]} 5. Bg5 {[%clk 01:31:07]} {[%emt 00:00:36]}
Be7 {[%clk 01:31:20]} {[%emt 00:00:38]} 6. Nf3 {[%clk 01:31:09]} {[%emt
00:00:29]} O-O {[%clk 01:30:35]} {[%emt 00:01:15]} 7. e3 {[%clk 01:31:27]}
{[%emt 00:00:12]} c6 {[%clk 01:29:33]} {[%emt 00:01:33]} 8. Bd3 {[%clk
01:30:00]} {[%emt 00:01:56]} Re8 {[%clk 01:28:25]} {[%emt 00:01:37]} 9. O-O
{[%clk 01:28:12]} {[%emt 00:02:19]} h6 {[%clk 01:27:14]} {[%emt 00:01:40]} 10.
Bh4 {[%clk 01:27:30]} {[%emt 00:01:13]} Bg4 {[%clk 01:20:56]} {[%emt 00:06:48]}
11. h3 {[%clk 01:25:12]} {[%emt 00:02:48]} Be6 {[%clk 01:15:26]} {[%emt
00:05:59]} 12. Re1 {[%clk 01:22:52]} {[%emt 00:02:50]} Qc8 {[%clk 01:12:02]}
{[%emt 00:03:55]} 13. Kf1 {[%clk 01:14:35]} {[%emt 00:08:47]} Bf5 {[%clk
01:09:51]} {[%emt 00:02:41]} 14. Bxf5 {[%clk 01:11:08]} {[%emt 00:03:57]} Qxf5
{[%clk 01:10:03]} {[%emt 00:00:17]} 15. Bg3 {[%clk 01:10:07]} {[%emt 00:01:31]}
Ne4 {[%clk 01:03:26]} {[%emt 00:07:07]} 16. Nxe4 {[%clk 01:07:58]} {[%emt
00:02:39]} dxe4 {[%clk 01:01:31]} {[%emt 00:02:26]} 17. Nd2 {[%clk 01:05:57]}
{[%emt 00:02:31]} Nd7 {[%clk 01:01:03]} {[%emt 00:00:58]} 18. Qc2 {[%clk
01:03:09]} {[%emt 00:03:18]} Bg5 {[%clk 00:58:24]} {[%emt 00:03:08]} 19. Nc4
{[%clk 01:01:54]} {[%emt 00:01:45]} Be7 {[%clk 00:52:55]} {[%emt 00:05:59]} 20.
Bd6 {[%clk 01:00:27]} {[%emt 00:01:58]} Qe6 {[%clk 00:50:15]} {[%emt 00:03:11]}
21. Bf4 {[%clk 00:57:54]} {[%emt 00:02:49]} Nf6 {[%clk 00:47:12]} {[%emt
00:03:45]} 22. a3 {[%clk 00:54:26]} {[%emt 00:03:58]} Rad8 {[%clk 00:44:24]}
{[%emt 00:03:18]} 23. Rac1 {[%clk 00:53:32]} {[%emt 00:01:23]} Nh5 {[%clk
00:41:15]} {[%emt 00:03:40]} 24. Be5 {[%clk 00:50:39]} {[%emt 00:03:23]} Qg6
{[%clk 00:37:15]} {[%emt 00:04:31]} 25. Nd2 {[%clk 00:46:38]} {[%emt 00:04:30]}
Bf6 {[%clk 00:36:52]} {[%emt 00:00:53]} 26. Rcd1 {[%clk 00:39:08]} {[%emt
00:08:00]} Bxe5 {[%clk 00:35:20]} {[%emt 00:02:02]} 27. dxe5 {[%clk 00:39:12]}
{[%emt 00:00:27]} Rxe5 {[%clk 00:34:55]} {[%emt 00:00:54]} 28. Nc4 {[%clk
00:37:58]} {[%emt 00:01:45]} Rxd1 {[%clk 00:34:02]} {[%emt 00:01:23]} 29. Rxd1
{[%clk 00:35:25]} {[%emt 00:03:02]} Rg5 {[%clk 00:33:08]} {[%emt 00:01:24]} 30.
g4 {[%clk 00:33:41]} {[%emt 00:02:14]} Nf6 {[%clk 00:31:41]} {[%emt 00:01:57]}
31. Rd8+ {[%clk 00:32:48]} {[%emt 00:01:23]} Kh7 {[%clk 00:32:00]} {[%emt
00:00:11]} 32. Rb8 {[%clk 00:32:19]} {[%emt 00:00:59]} h5 {[%clk 00:31:40]}
{[%emt 00:00:50]} 33. gxh5 {[%clk 00:30:54]} {[%emt 00:01:55]} Qxh5 {[%clk
00:30:55]} {[%emt 00:01:14]} 34. Rxb7 {[%clk 00:29:03]} {[%emt 00:02:22]} Qxh3+
{[%clk 00:30:57]} {[%emt 00:00:27]} 35. Ke1 {[%clk 00:28:16]} {[%emt 00:01:18]}
Rg2 {[%clk 00:23:35]} {[%emt 00:07:52]} 36. Qe2 {[%clk 00:27:34]} {[%emt
00:01:11]} Kg8 {[%clk 00:19:45]} {[%emt 00:04:21]} 37. Rb8+ {[%clk 00:24:52]}
{[%emt 00:03:12]} Kh7 {[%clk 00:20:04]} {[%emt 00:00:11]} 38. Rb7 {[%clk
00:25:12]} {[%emt 00:00:10]} Qh2 {[%clk 00:20:11]} {[%emt 00:00:24]} 39. Rxa7
{[%clk 00:24:55]} {[%emt 00:00:47]} Qg1+ {[%clk 00:20:13]} {[%emt 00:00:28]} 40.
Qf1 {[%clk 00:24:43]} {[%emt 00:00:42]} Qh2 {[%clk 00:20:02]} {[%emt 00:00:40]}
41. Qe2 {[%clk 00:25:01]} {[%emt 00:00:13]} Qg1+ {[%clk 00:16:35]} {[%emt
00:03:57]} 42. Qf1 {[%clk 00:25:15]} {[%emt 00:00:15]} Qh2 {[%clk 00:16:00]}
{[%emt 00:01:05]} 43. Qe2 {[%clk 00:25:40]} {[%emt 00:00:06]} Kg6 {[%clk
00:12:16]} {[%emt 00:04:13]} 44. Ra6 {[%clk 00:22:20]} {[%emt 00:03:51]} Ng4
{[%clk 00:12:34]} {[%emt 00:00:12]} 45. Rxc6+ {[%clk 00:21:54]} {[%emt
00:00:54]} Kh7 {[%clk 00:12:58]} {[%emt 00:00:07]} 46. Rc8 {[%clk 00:21:00]}
{[%emt 00:01:24]} Qh1+ {[%clk 00:12:13]} {[%emt 00:01:15]} 47. Qf1 {[%clk
00:20:49]} {[%emt 00:00:41]} Rg1 {[%clk 00:12:34]} {[%emt 00:00:09]} 48. Qxg1
{[%clk 00:21:13]} {[%emt 00:00:07]} Qxg1+ {[%clk 00:13:00]} {[%emt 00:00:04]}
49. Kd2 {[%clk 00:21:21]} {[%emt 00:00:21]} Qxf2+ {[%clk 00:12:52]} {[%emt
00:00:37]} 50. Kc3 {[%clk 00:21:44]} {[%emt 00:00:08]} Nxe3 {[%clk 00:13:08]}
{[%emt 00:00:14]} 51. a4 {[%clk 00:21:25]} {[%emt 00:00:48]} Nxc4 {[%clk
00:13:26]} {[%emt 00:00:11]} 52. Rxc4 {[%clk 00:21:38]} {[%emt 00:00:18]} e3
{[%clk 00:13:33]} {[%emt 00:00:24]} 53. a5 {[%clk 00:21:43]} {[%emt 00:00:24]}
Qe1+ {[%clk 00:13:25]} {[%emt 00:00:38]} 54. Kd3 {[%clk 00:21:54]} {[%emt
00:00:19]} Qxa5 {[%clk 00:13:43]} {[%emt 00:00:13]} 55. Kxe3 {[%clk 00:22:14]}
{[%emt 00:00:09]} Qe5+ {[%clk 00:13:53]} {[%emt 00:00:21]} 56. Re4 {[%clk
00:22:34]} {[%emt 00:00:09]} Qxb2 {[%clk 00:14:17]} {[%emt 00:00:06]} 57. Rh4+
{[%clk 00:22:58]} {[%emt 00:00:07]} Kg8 {[%clk 00:14:29]} {[%emt 00:00:18]} 58.
Rc4 {[%clk 00:22:57]} {[%emt 00:00:30]} Qb3+ {[%clk 00:14:30]} {[%emt
00:00:31]} 59. Kd4 {[%clk 00:23:19]} {[%emt 00:00:07]} Qxc4+ {[%clk 00:14:47]}
{[%emt 00:00:13]} 60. Kxc4 {[%clk 00:23:38]} {[%emt 00:00:11]} g5 {[%clk
00:15:00]} {[%emt 00:00:17]} 61. Kd3 {[%clk 00:23:41]} {[%emt 00:00:27]} f5
{[%clk 00:15:19]} {[%emt 00:00:11]} 62. Ke3 {[%clk 00:24:00]} {[%emt 00:00:10]}
Kf7 {[%clk 00:15:28]} {[%emt 00:00:21]} 63. Kf3 {[%clk 00:24:11]} {[%emt
00:00:19]} Ke6 {[%clk 00:15:47]} {[%emt 00:00:11]} 64. Kg3 {[%clk 00:24:28]}
{[%emt 00:00:13]} Ke5 {[%clk 00:16:03]} {[%emt 00:00:14]} 65. Kf3 {[%clk
00:24:49]} {[%emt 00:00:09]} Kd4 {[%clk 00:16:13]} {[%emt 00:00:20]} 66. Kg3
{[%clk 00:25:07]} {[%emt 00:00:12]} Ke3 {[%clk 00:16:36]} {[%emt 00:00:08]} 67.
Kg2 {[%clk 00:25:27]} {[%emt 00:00:10]} Ke2 {[%clk 00:16:52]} {[%emt 00:00:14]}
68. Kg3 {[%clk 00:25:48]} {[%emt 00:00:08]} f4+ {[%clk 00:17:16]} {[%emt
00:00:07]} 69. Kg4 {[%clk 00:26:06]} {[%emt 00:00:11]} f3 {[%clk 00:17:40]}
{[%emt 00:00:07]} 70. Kh5 {[%clk 00:26:34]} {[%emt 00:00:01]} f2 {[%clk
00:17:59]} {[%emt 00:00:12]} 71. Kg6 {[%clk 00:26:58]} {[%emt 00:00:05]} f1=Q
{[%clk 00:18:14]} {[%emt 00:00:15]} 72. Kh5 {[%clk 00:27:19]} {[%emt 00:00:09]}
g4 {[%clk 00:18:18]} {[%emt 00:00:26]} 73. Kh4 {[%clk 00:27:33]} {[%emt
00:00:16]} Qh3+ {[%clk 00:18:24]} {[%emt 00:00:25]} 74. Kg5 {[%clk 00:27:57]}
{[%emt 00:00:05]} g3 {[%clk 00:18:35]} {[%emt 00:00:19]} 75. Kf4 {[%clk
00:28:15]} {[%emt 00:00:12]} g2 {[%clk 00:18:56]} {[%emt 00:00:09]} 76. Ke4
{[%clk 00:28:37]} {[%emt 00:00:08]} g1=Q {[%clk 00:19:12]} {[%emt 00:00:14]} 77.
Kd5 {[%clk 00:28:57]} {[%emt 00:00:11]} Qg5+ {[%clk 00:19:29]} {[%emt
00:00:13]} 78. Kd4 {[%clk 00:29:15]} {[%emt 00:00:12]} Qf4+ {[%clk 00:19:44]}
{[%emt 00:00:14]} 79. Kd5 {[%clk 00:29:39]} {[%emt 00:00:06]} Qh5+ {[%clk
00:20:06]} {[%emt 00:00:08]} 80. Ke6 {[%clk 00:30:21]} {[%emt 00:00:19]} Qfh6+
{[%clk 00:20:50]} {[%emt 00:00:15]} 0-1

[Event "NJSK 2022 Meisjes C"]
[Site "Almelo, Netherlands"]
[Date "2022.05.03"]
[Round "3.3"]
[White "Gergin, Isafara"]
[Black "Feng, Elysia"]
[Result "0-1"]
[TimeControl "90min/40moves + 30min + 30sec/move"]
[WhiteElo "1723"]
[BlackElo "1641"]

1. e4 {[%clk 01:30:58]} {[%emt 00:00:02]} e5 {[%clk 01:30:56]} {[%emt
00:00:04]} 2. Nf3 {[%clk 01:31:26]} {[%emt 00:00:02]} Nc6 {[%clk 01:31:22]}
{[%emt 00:00:04]} 3. Bc4 {[%clk 01:31:52]} {[%emt 00:00:05]} Bc5 {[%clk
01:31:45]} {[%emt 00:00:07]} 4. c3 {[%clk 01:32:16]} {[%emt 00:00:06]} Nf6
{[%clk 01:32:09]} {[%emt 00:00:06]} 5. d3 {[%clk 01:32:39]} {[%emt 00:00:07]}
d6 {[%clk 01:32:32]} {[%emt 00:00:06]} 6. Bb3 {[%clk 01:32:56]} {[%emt
00:00:13]} Be6 {[%clk 01:32:40]} {[%emt 00:00:23]} 7. Bc2 {[%clk 01:32:26]}
{[%emt 00:00:59]} h6 {[%clk 01:31:53]} {[%emt 00:01:17]} 8. h3 {[%clk
01:32:14]} {[%emt 00:00:43]} Qd7 {[%clk 01:29:20]} {[%emt 00:03:03]} 9. Nbd2
{[%clk 01:31:19]} {[%emt 00:01:24]} a6 {[%clk 01:23:58]} {[%emt 00:05:53]} 10.
Nf1 {[%clk 01:28:58]} {[%emt 00:02:51]} O-O-O {[%clk 01:17:18]} {[%emt
00:07:11]} 11. d4 {[%clk 01:13:47]} {[%emt 00:15:40]} exd4 {[%clk 01:17:12]}
{[%emt 00:00:36]} 12. cxd4 {[%clk 01:10:26]} {[%emt 00:03:51]} Bb4+ {[%clk
01:16:20]} {[%emt 00:01:23]} 13. Bd2 {[%clk 01:09:18]} {[%emt 00:01:38]} Rhe8
{[%clk 01:09:10]} {[%emt 00:07:39]} 14. Ng3 {[%clk 01:02:07]} {[%emt 00:07:40]}
Bc4 {[%clk 01:04:08]} {[%emt 00:05:33]} 15. Bxb4 {[%clk 00:44:31]} {[%emt
00:18:06]} Nxb4 {[%clk 00:56:58]} {[%emt 00:07:40]} 16. Qd2 {[%clk 00:35:11]}
{[%emt 00:09:50]} Nxc2+ {[%clk 00:48:50]} {[%emt 00:08:38]} 17. Qxc2 {[%clk
00:35:20]} {[%emt 00:00:21]} Nxe4 {[%clk 00:47:46]} {[%emt 00:01:35]} 18. Nxe4
{[%clk 00:34:55]} {[%emt 00:00:53]} Bd5 {[%clk 00:47:04]} {[%emt 00:01:13]} 19.
O-O {[%clk 00:34:14]} {[%emt 00:01:11]} Bxe4 {[%clk 00:47:26]} {[%emt
00:00:08]} 20. Qc3 {[%clk 00:33:52]} {[%emt 00:00:52]} Bxf3 {[%clk 00:46:57]}
{[%emt 00:00:59]} 21. Qxf3 {[%clk 00:34:19]} {[%emt 00:00:03]} d5 {[%clk
00:45:12]} {[%emt 00:02:16]} 22. a4 {[%clk 00:32:44]} {[%emt 00:02:05]} Re4
{[%clk 00:43:00]} {[%emt 00:02:41]} 23. Qc3 {[%clk 00:30:30]} {[%emt 00:02:44]}
Rde8 {[%clk 00:41:52]} {[%emt 00:01:39]} 24. b4 {[%clk 00:27:35]} {[%emt
00:03:24]} Qc6 {[%clk 00:37:35]} {[%emt 00:04:47]} 25. Qxc6 {[%clk 00:15:30]}
{[%emt 00:12:35]} bxc6 {[%clk 00:38:01]} {[%emt 00:00:05]} 26. Rfd1 {[%clk
00:12:12]} {[%emt 00:03:48]} Re2 {[%clk 00:35:30]} {[%emt 00:03:01]} 27. Rdc1
{[%clk 00:07:21]} {[%emt 00:05:21]} Kd7 {[%clk 00:33:04]} {[%emt 00:02:55]} 28.
Rc5 {[%clk 00:04:03]} {[%emt 00:03:47]} Re1+ {[%clk 00:29:40]} {[%emt
00:03:55]} 29. Rxe1 {[%clk 00:04:19]} {[%emt 00:00:14]} Rxe1+ {[%clk 00:30:07]}
{[%emt 00:00:03]} 30. Kh2 {[%clk 00:04:44]} {[%emt 00:00:06]} Rb1 {[%clk
00:29:56]} {[%emt 00:00:41]} 31. Ra5 {[%clk 00:04:10]} {[%emt 00:01:03]} Rxb4
{[%clk 00:30:07]} {[%emt 00:00:19]} 32. Rxa6 {[%clk 00:04:32]} {[%emt
00:00:09]} Rxd4 {[%clk 00:30:22]} {[%emt 00:00:14]} 33. Kg3 {[%clk 00:04:09]}
{[%emt 00:00:53]} Rb4 {[%clk 00:29:39]} {[%emt 00:01:13]} 34. Kf3 {[%clk
00:03:56]} {[%emt 00:00:43]} c5 {[%clk 00:28:54]} {[%emt 00:01:15]} 35. Ke3
{[%clk 00:03:47]} {[%emt 00:00:38]} Rb3+ {[%clk 00:27:49]} {[%emt 00:01:36]} 36.
Kd2 {[%clk 00:04:00]} {[%emt 00:00:16]} c4 {[%clk 00:27:31]} {[%emt 00:00:49]}
37. Ra5 {[%clk 00:03:34]} {[%emt 00:00:56]} Kd6 {[%clk 00:25:18]} {[%emt
00:02:43]} 38. Ra8 {[%clk 00:03:24]} {[%emt 00:00:40]} d4 {[%clk 00:23:14]}
{[%emt 00:02:35]} 39. a5 {[%clk 00:03:16]} {[%emt 00:00:38]} Rb2+ {[%clk
00:22:33]} {[%emt 00:01:11]} 40. Kc1 {[%clk 00:03:06]} {[%emt 00:00:40]} c3
{[%clk 00:22:45]} {[%emt 00:00:18]} 41. a6 {[%clk 00:03:14]} {[%emt 00:00:22]}
Ra2 {[%clk 00:21:20]} {[%emt 00:01:55]} 42. a7 {[%clk 00:03:07]} {[%emt
00:00:37]} Kc5 {[%clk 00:20:45]} {[%emt 00:01:05]} 43. Rf8 {[%clk 00:02:40]}
{[%emt 00:00:56]} Rxa7 {[%clk 00:21:00]} {[%emt 00:00:16]} 44. Rxf7 {[%clk
00:02:50]} {[%emt 00:00:19]} d3 {[%clk 00:21:01]} {[%emt 00:00:30]} 45. Kb1
{[%clk 00:02:59]} {[%emt 00:00:20]} c2+ {[%clk 00:21:10]} {[%emt 00:00:21]} 46.
Kb2 {[%clk 00:03:09]} {[%emt 00:00:20]} Rb7+ {[%clk 00:21:31]} {[%emt
00:00:10]} 0-1

[Event "NJSK 2022 Meisjes C"]
[Site "Almelo, Netherlands"]
[Date "2022.05.03"]
[Round "3.4"]
[White "Maris, Lauri"]
[Black "Yildirim, Azra"]
[Result "1-0"]
[TimeControl "90min/40moves + 30min + 30sec/move"]
[WhiteElo "1619"]
[BlackElo "985"]

1. e4 {[%clk 01:30:59]} {[%emt 00:00:01]} c5 {[%clk 01:30:16]} {[%emt
00:00:44]} 2. Nf3 {[%clk 01:30:34]} {[%emt 00:00:55]} Nc6 {[%clk 01:30:14]}
{[%emt 00:00:32]} 3. Bc4 {[%clk 01:29:11]} {[%emt 00:01:53]} e6 {[%clk
01:28:36]} {[%emt 00:02:08]} 4. Nc3 {[%clk 01:29:30]} {[%emt 00:00:11]} Nf6
{[%clk 01:28:13]} {[%emt 00:00:53]} 5. O-O {[%clk 01:29:07]} {[%emt 00:00:53]}
Nxe4 {[%clk 01:26:55]} {[%emt 00:01:48]} 6. Nxe4 {[%clk 01:28:48]} {[%emt
00:00:49]} d5 {[%clk 01:27:08]} {[%emt 00:00:17]} 7. Bxd5 {[%clk 01:25:10]}
{[%emt 00:04:08]} exd5 {[%clk 01:26:52]} {[%emt 00:00:46]} 8. Nc3 {[%clk
01:24:09]} {[%emt 00:01:31]} Bf5 {[%clk 01:23:05]} {[%emt 00:04:17]} 9. Re1+
{[%clk 01:21:59]} {[%emt 00:02:40]} Be7 {[%clk 01:22:26]} {[%emt 00:01:09]} 10.
d3 {[%clk 01:20:51]} {[%emt 00:01:38]} h6 {[%clk 01:21:42]} {[%emt 00:01:14]}
11. Ne5 {[%clk 01:20:03]} {[%emt 00:01:19]} Rc8 {[%clk 01:17:23]} {[%emt
00:04:49]} 12. Nxc6 {[%clk 01:20:05]} {[%emt 00:00:27]} Rxc6 {[%clk 01:17:09]}
{[%emt 00:00:44]} 13. Qf3 {[%clk 01:19:12]} {[%emt 00:01:21]} Be6 {[%clk
01:15:58]} {[%emt 00:01:43]} 14. Qg3 {[%clk 01:17:51]} {[%emt 00:01:46]} Bf6
{[%clk 01:13:47]} {[%emt 00:02:46]} 15. Bf4 {[%clk 01:16:39]} {[%emt 00:01:42]}
Qb6 {[%clk 01:11:44]} {[%emt 00:02:33]} 16. Nxd5 {[%clk 01:12:01]} {[%emt
00:05:09]} Qxb2 {[%clk 01:10:48]} {[%emt 00:01:25]} 17. Nxf6+ {[%clk 01:12:13]}
{[%emt 00:00:17]} Qxf6 {[%clk 01:10:38]} {[%emt 00:00:40]} 18. Be5 {[%clk
01:12:22]} {[%emt 00:00:22]} Qg5 {[%clk 01:08:15]} {[%emt 00:02:53]} 19. Qxg5
{[%clk 01:11:51]} {[%emt 00:01:01]} hxg5 {[%clk 01:08:32]} {[%emt 00:00:13]} 20.
Bxg7 {[%clk 01:12:04]} {[%emt 00:00:17]} Rh7 {[%clk 01:07:59]} {[%emt
00:01:04]} 21. Bf6 {[%clk 01:11:58]} {[%emt 00:00:34]} g4 {[%clk 01:07:32]}
{[%emt 00:00:58]} 22. a3 {[%clk 01:08:37]} {[%emt 00:03:51]} Kd7 {[%clk
01:06:57]} {[%emt 00:01:05]} 23. Be5 {[%clk 01:07:12]} {[%emt 00:01:55]} c4
{[%clk 01:06:01]} {[%emt 00:01:27]} 24. d4 {[%clk 01:06:27]} {[%emt 00:01:15]}
Bd5 {[%clk 01:06:00]} {[%emt 00:00:30]} 25. c3 {[%clk 01:05:57]} {[%emt
00:01:00]} Re6 {[%clk 01:04:19]} {[%emt 00:02:11]} 26. Bf4 {[%clk 01:05:15]}
{[%emt 00:01:12]} f5 {[%clk 01:03:50]} {[%emt 00:00:59]} 27. Re5 {[%clk
01:03:56]} {[%emt 00:01:48]} Kc6 {[%clk 01:02:50]} {[%emt 00:01:31]} 28. Rxf5
{[%clk 01:02:47]} {[%emt 00:01:39]} Rhe7 {[%clk 01:01:14]} {[%emt 00:02:07]} 29.
Re5 {[%clk 01:02:55]} {[%emt 00:00:19]} Kd6 {[%clk 01:00:49]} {[%emt 00:00:57]}
30. Rxe6+ {[%clk 01:01:47]} {[%emt 00:01:38]} Kxe6 {[%clk 01:01:07]} {[%emt
00:00:12]} 31. Re1+ {[%clk 01:01:30]} {[%emt 00:00:47]} Kf6 {[%clk 01:01:10]}
{[%emt 00:00:27]} 32. Bg5+ {[%clk 01:01:38]} {[%emt 00:00:22]} Kxg5 {[%clk
01:01:09]} {[%emt 00:00:31]} 33. Rxe7 {[%clk 01:02:03]} {[%emt 00:00:05]} a5
{[%clk 01:00:46]} {[%emt 00:00:53]} 34. Re5+ {[%clk 01:02:27]} {[%emt
00:00:06]} Kf4 {[%clk 01:00:45]} {[%emt 00:00:31]} 35. g3+ {[%clk 01:02:18]}
{[%emt 00:00:38]} 1-0